bitfinex/quotes_ETHUSD_20220227
["timestamp","ask_amount","ask_price","bid_price","bid_amount"]
[1645995177474,7.5594,2646.1,2645.4,4.78421795]
[1645995177682,0.99902923,2645.9,2645.8,1.34984784]
[1645995177874,0.99902923,2645.9,2645.8,4.78421795]
[1645995178778,7.5594,2646.1,2645.8,4.77782395]
[1645995178779,8.56155293,2646.1,2645.8,4.77782395]
[1645995178976,0.0061836,2646.0,2645.5,0.3802]
[1645995179176,0.0061836,2646.0,2645.9,4.77782395]
[1645995179576,1.00521283,2646.0,2645.9,4.77782395]
[1645995179778,0.99902923,2646.0,2645.9,4.77782395]
[1645995180184,0.99902923,2646.0,2645.6,4.77782395]
[1645995180434,0.99902923,2646.0,2644.4,1.0]
[1645995180435,0.99902923,2646.0,2644.5,0.1511]
[1645995180632,0.99902923,2645.4,2644.9,4.77782395]
[1645995180839,0.24201204,2646.0,2644.8,4.77782395]
[1645995180840,0.05272,2645.3,2644.8,4.77782395]
[1645995181032,0.0526,2645.6,2644.8,4.77782395]
[1645995181236,0.99902923,2645.0,2644.8,4.77782395]
[1645995181632,0.99902923,2644.9,2644.8,4.77782395]
[1645995182231,0.99902923,2645.0,2644.8,4.77782395]
[1645995182631,1.0052073,2645.0,2644.9,1.05844002]
[1645995182830,0.00617807,2645.0,2644.8,4.77782395]
[1645995183434,0.99902923,2645.3,2644.8,6.15802395]
[1645995183635,7.5625237,2646.1,2645.2,4.77782395]
[1645995183636,0.00544624,2645.9,2645.2,4.77782395]
[1645995183840,0.00544624,2645.9,2645.6,4.77782395]
[1645995184275,1.0,2645.8,2645.1,0.5313]
[1645995184473,1.0,2645.8,2645.7,4.77782395]
[1645995185681,1.0,2645.8,2645.3,4.77782395]
[1645995185880,1.0,2645.8,2645.2,4.77782395]
[1645995185881,4.74694846,2645.8,2645.2,4.77782395]
[1645995186079,0.24694846,2645.8,2645.2,4.77782395]
[1645995186277,0.19329823,2645.9,2645.2,3.08894969]
[1645995186481,1.0,2645.3,2645.2,3.08894969]
[1645995186880,0.77044594,2645.9,2645.2,3.0825569]
[1645995186881,1.0,2645.5,2645.2,3.0825569]
[1645995187079,1.0,2645.5,2644.6,1.13263948]
[1645995187080,1.0,2645.5,2645.3,3.0825569]
[1645995187278,1.0,2645.4,2645.3,3.0825569]
[1645995187479,1.00617251,2645.4,2645.3,3.0825569]
[1645995187679,6.75291729,2646.1,2645.3,3.0825569]
[1645995188121,0.691,2645.4,2645.3,3.0825569]
[1645995188524,0.05145,2646.0,2645.3,3.0825569]
[1645995188725,1.0,2645.4,2645.1,1.10258863]
[1645995188927,1.0,2645.4,2645.3,3.0825569]
[1645995190730,1.0,2645.4,2644.3,0.01254495]
[1645995190731,1.0,2645.4,2645.2,3.0825569]
[1645995190929,1.0,2645.4,2644.4,1.0]
[1645995191229,1.0,2645.3,2644.8,3.0825569]
[1645995191428,1.0,2645.3,2644.4,4.0825569]
[1645995191687,1.0,2644.5,2644.4,4.0825569]
[1645995191884,1.0,2644.5,2644.4,1.0]
[1645995192086,1.0,2644.5,2644.4,0.52229712]
[1645995192385,1.0,2644.5,2643.9,0.00085943]
[1645995192386,8.5,2644.4,2643.9,0.00085943]
[1645995192584,0.05331,2644.3,2643.6,2.77151468]
[1645995192886,0.05331,2644.3,2643.2,0.3437]
[1645995192887,1.0,2643.8,2643.5,2.77151468]
[1645995193084,2.0,2643.7,2643.5,2.77151468]
[1645995193284,1.0,2643.6,2643.5,2.77151468]
[1645995193483,2.0,2643.6,2643.2,0.3437]
[1645995193685,2.0,2643.6,2643.5,2.77151468]
[1645995193884,1.0,2643.6,2643.0,2.77151468]
[1645995194087,3.74375008,2643.5,2642.4,2.77151468]
[1645995194292,3.74375008,2643.5,2642.2,3.91384512]
[1645995194293,2.9352354,2643.5,2642.2,3.91384512]
[1645995194489,2.9352354,2643.5,2642.2,1.14233044]
[1645995194490,2.0,2642.5,2642.2,1.14233044]
[1645995194686,1.0,2642.5,2642.2,1.14233044]
[1645995194890,1.0,2642.3,2642.2,1.14233044]
[1645995195090,9.5,2642.2,2641.4,0.8373]
[1645995195348,3.77176542,2642.1,2641.4,0.8373]
[1645995195534,1.0,2641.5,2641.4,0.8373]
[1645995195735,2.0,2641.5,2641.4,3.60881468]
[1645995195934,1.0,2641.5,2641.4,3.60881468]
[1645995196637,1.0,2641.5,2641.4,4.76104184]
[1645995196843,1.48449675,2643.2,2641.4,4.76104184]
[1645995196844,3.5,2643.1,2641.6,0.378]
[1645995197039,0.57012263,2643.5,2642.1,2.77151468]
[1645995197242,3.83193102,2643.4,2642.1,2.77151468]
[1645995197440,1.0,2642.2,2641.5,3.90412198]
[1645995197640,1.0,2642.2,2642.1,2.77151468]
[1645995197840,3.76517001,2643.4,2642.1,2.77151468]
[1645995198042,1.0,2642.2,2641.9,2.77151468]
[1645995198243,1.0,2642.2,2642.1,2.77151468]
[1645995198442,1.0,2642.4,2642.1,2.77151468]
[1645995198642,1.0,2642.4,2641.6,0.00532235]
[1645995198942,1.0,2642.4,2642.3,2.77151468]
[1645995199383,0.0683866,2643.4,2642.5,0.378]
[1645995199581,7.3,2644.2,2643.3,2.77151468]
[1645995199582,0.56624226,2643.9,2643.3,2.77151468]
[1645995199879,0.05,2643.2,2642.6,0.06981337]
[1645995200079,6.75291729,2643.8,2643.1,3.14951468]
[1645995200277,6.75291729,2643.8,2643.7,2.77151468]
[1645995200777,7.13391729,2643.8,2643.7,2.77151468]
[1645995200978,6.75291729,2643.8,2643.7,2.77151468]
[1645995201479,7.75291729,2643.8,2643.7,2.77151468]
[1645995202682,7.75291729,2643.8,2643.5,2.77151468]
[1645995202934,3.5,2643.7,2643.1,1.0]
[1645995203129,1.0,2643.3,2643.1,1.0]
[1645995203330,0.05317,2643.7,2643.2,0.00085105]
[1645995203728,6.75291729,2643.8,2643.2,0.00085105]
[1645995203928,1.0,2643.3,2643.2,0.00085105]
[1645995204127,1.0,2643.3,2643.1,1.0]
[1645995204532,1.0,2643.2,2643.1,1.0]
[1645995205134,0.95,2643.2,2643.1,1.0]
[1645995205533,7.3308552,2643.8,2643.1,1.0]
[1645995205732,1.0,2643.2,2643.1,1.0]
[1645995206336,0.92678821,2643.0,2642.9,2.77151468]
[1645995206780,1.92678821,2643.0,2642.9,2.77151468]
[1645995208080,1.34178821,2643.0,2642.9,2.77151468]
[1645995208886,8.821e-05,2643.1,2642.9,4.14951468]
[1645995209083,8.821e-05,2643.1,2642.9,5.61251468]
[1645995209383,6.75291729,2643.8,2642.9,5.61251468]
[1645995209384,8.821e-05,2643.6,2642.9,5.61251468]
[1645995209582,6.75291729,2643.8,2643.5,2.77151468]
[1645995209781,6.75291729,2643.8,2642.9,2.841]
[1645995209782,0.99908821,2643.5,2642.9,2.463]
[1645995209986,0.99908821,2643.5,2643.4,2.77151468]
[1645995210181,0.99908821,2643.6,2643.4,2.77151468]
[1645995210425,0.99908821,2643.5,2643.4,2.77151468]
[1645995213632,6.75291729,2643.8,2643.4,2.77151468]
[1645995213830,6.75291729,2643.8,2643.7,2.77151468]
[1645995216075,6.75291729,2643.8,2643.7,4.16748819]
[1645995216679,6.75291729,2643.8,2643.7,4.16572419]
[1645995217926,6.75291729,2643.8,2643.7,2.76975068]
[1645995218320,6.75291729,2643.8,2643.7,6.56975068]
[1645995218525,7.7520055,2643.8,2643.7,6.56975068]
[1645995219225,8.48194169,2643.8,2643.7,6.56975068]
[1645995219425,7.7520055,2643.8,2643.7,3.8]
[1645995219925,7.7520055,2643.8,2643.7,6.56975068]
[1645995220433,6.75291729,2643.8,2643.7,6.56975068]
[1645995221427,7.7520055,2643.8,2643.7,6.56975068]
[1645995221680,7.7520055,2643.8,2643.7,3.8]
[1645995221881,8.50153828,2643.8,2643.7,3.8]
[1645995222277,8.50169156,2643.8,2643.7,3.8]
[1645995223479,7.7520055,2643.8,2643.7,3.8]
[1645995223680,8.50198042,2643.8,2643.7,3.8]
[1645995226125,8.50198042,2643.8,2642.7,2.76975068]
[1645995226126,18.0,2643.7,2642.7,2.76975068]
[1645995226325,0.74997492,2643.6,2642.7,2.76975068]
[1645995226527,0.99908821,2643.2,2642.7,2.76975068]
[1645995226929,18.0,2643.7,2642.7,2.76975068]
[1645995226930,0.99908821,2642.8,2642.7,2.76975068]
[1645995228432,0.99908821,2642.8,2642.4,1.0]
[1645995228433,0.98908821,2642.8,2642.4,1.0]
[1645995228632,1.69020728,2642.6,2642.3,0.00442491]
[1645995229077,0.99908821,2642.4,2642.3,0.00442491]
[1645995229481,0.99908821,2642.4,2641.5,3.81482198]
[1645995229482,0.99908821,2642.4,2641.5,6.58457266]
[1645995229881,0.99908821,2641.6,2641.5,3.81482198]
[1645995230086,0.99908821,2641.7,2641.5,3.80637266]
[1645995230481,1.69020728,2642.6,2641.5,3.80637266]
[1645995230482,0.99908821,2642.0,2641.5,3.80637266]
[1645995230889,0.99908821,2642.0,2641.9,2.76975068]
[1645995231686,0.99908821,2642.0,2641.7,2.76975068]
[1645995232081,0.99908821,2641.8,2641.7,2.76975068]
[1645995233329,0.99908821,2641.9,2641.7,2.76975068]
[1645995233731,0.99908821,2642.2,2641.7,2.76975068]
[1645995233931,0.99908821,2641.8,2641.7,2.76975068]
[1645995235134,0.99908821,2641.8,2641.6,2.76975068]
[1645995235333,0.99908821,2641.8,2641.5,1.04133593]
[1645995235532,0.99908821,2641.6,2641.5,1.04133593]
[1645995236136,0.99908821,2641.6,2641.5,1.03662198]
[1645995236333,0.99908821,2641.6,2641.5,3.80637266]
[1645995237108,0.55664072,2642.2,2641.5,3.80637266]
[1645995237109,0.99908821,2641.8,2641.5,3.80637266]
[1645995237509,0.99908821,2641.8,2641.7,2.76975068]
[1645995237709,0.99908821,2642.0,2641.7,2.76975068]
[1645995237914,0.99908821,2641.8,2641.7,2.76975068]
[1645995238110,0.99908821,2641.8,2641.7,3.76975068]
[1645995238310,0.55664072,2642.2,2641.7,3.76975068]
[1645995238311,0.99908821,2642.0,2641.7,3.76975068]
[1645995238510,0.99908821,2642.0,2641.9,1.0]
[1645995238913,0.55664072,2642.2,2641.9,1.0]
[1645995239112,0.99908821,2642.0,2641.9,1.0]
[1645995242327,0.99908821,2642.0,2641.9,0.845]
[1645995242727,0.99908821,2642.0,2641.9,4.645]
[1645995243132,8.821e-05,2642.0,2641.9,7.79275068]
[1645995243329,1.69020728,2642.6,2641.9,7.79275068]
[1645995243330,1.69020728,2642.6,2642.0,20.24760984]
[1645995243528,1.69020728,2642.6,2642.5,2.76975068]
[1645995243731,0.91679575,2643.6,2642.5,2.76975068]
[1645995243732,0.66413449,2643.5,2642.7,11.878]
[1645995243934,0.72640753,2643.4,2642.7,12.341]
[1645995244175,0.72640753,2643.4,2643.3,2.76975068]
[1645995244372,0.72640753,2643.4,2643.3,3.61455068]
[1645995245071,0.72640753,2643.4,2643.3,2.76975068]
[1645995245973,0.72640753,2643.4,2643.3,3.61455068]
[1645995247078,0.72640753,2643.4,2643.3,4.91614213]
[1645995247478,0.72640753,2643.4,2643.3,3.61455068]
[1645995248126,0.88160753,2643.4,2643.3,3.61455068]
[1645995248526,0.88160753,2643.4,2643.3,3.02492059]
[1645995248927,0.89149975,2643.4,2643.3,3.02492059]
[1645995249327,0.89149975,2643.4,2643.3,1.9244328]
[1645995249730,0.16509222,2643.4,2643.3,1.9244328]
[1645995250330,0.16509222,2643.4,2643.3,3.7224543]
[1645995250529,9.222e-05,2643.4,2643.3,3.7654328]
[1645995253479,9.222e-05,2643.4,2643.3,3.3874328]
[1645995253679,9.222e-05,2643.4,2643.3,3.7654328]
[1645995253878,6.75291729,2643.8,2643.3,3.7654328]
[1645995254080,6.51081267,2643.8,2643.7,1.0796328]
[1645995254286,2.42415135,2643.8,2643.7,1.0796328]
[1645995254681,2.42415135,2643.8,2643.7,1.4576328]
[1645995255081,5.135e-05,2643.8,2643.7,1.9206328]
[1645995256629,0.05305,2644.9,2643.9,0.378]
[1645995256837,0.0061445,2645.0,2644.8,1.0796328]
[1645995257028,0.0061445,2645.0,2644.8,0.52127266]
[1645995257229,0.0061445,2645.0,2644.8,0.89927266]
[1645995257430,0.0061445,2645.0,2644.9,1.77080498]
[1645995257628,0.0061445,2645.0,2644.9,2.23380498]
[1645995257828,4.45e-05,2645.0,2644.9,0.841]
[1645995258031,0.0022638,2646.1,2644.9,0.841]
[1645995258228,0.0022638,2645.8,2645.3,0.378]
[1645995258428,0.62931008,2646.2,2646.0,1.0]
[1645995258634,1.62704628,2646.2,2645.5,0.05827266]
[1645995258934,1.62704628,2646.2,2645.1,0.05827266]
[1645995258935,1.68037628,2646.1,2645.1,0.05827266]
[1645995259186,1.29118077,2646.0,2645.1,1.0]
[1645995259392,0.05353,2645.9,2645.1,1.0]
[1645995259588,0.62704628,2645.8,2645.3,0.05827266]
[1645995259789,0.05373,2645.7,2645.3,0.05827266]
[1645995259990,1.0,2645.2,2644.7,1.0]
[1645995260193,1.0,2645.2,2644.6,0.05827266]
[1645995260194,0.68096628,2645.1,2644.6,0.05827266]
[1645995260390,0.62704628,2645.0,2644.3,3.0242]
[1645995260689,1.0,2644.8,2644.4,0.05827266]
[1645995260888,0.62704628,2644.7,2644.4,0.05827266]
[1645995261089,0.66413449,2645.3,2644.4,0.05827266]
[1645995261290,1.0,2644.5,2644.4,0.05827266]
[1645995261689,1.0,2644.5,2644.2,1.05827266]
[1645995261893,1.0,2644.5,2644.2,0.05827266]
[1645995262091,1.0,2644.3,2643.6,2.81697266]
[1645995262290,0.62434339,2644.2,2643.6,2.81697266]
[1645995262491,1.0,2643.7,2643.6,2.81697266]
[1645995262824,1.0,2643.7,2643.6,1.05827266]
[1645995264228,0.67026081,2645.2,2643.6,1.05827266]
[1645995264429,0.62417252,2645.1,2644.8,0.05827266]
[1645995264628,0.62417252,2645.1,2644.5,0.05827266]
[1645995264828,1.0,2644.9,2644.5,0.05827266]
[1645995265027,0.62417252,2644.8,2644.5,0.05827266]
[1645995265227,1.0,2644.6,2644.2,0.05827266]
[1645995265630,0.00612804,2645.2,2644.2,0.05827266]
[1645995265830,1.0,2644.3,2644.2,0.05827266]
[1645995266684,1.0,2644.5,2644.2,0.05827266]
[1645995267981,1.0,2644.3,2644.2,0.05827266]
[1645995268587,1.0,2644.3,2644.1,0.21188192]
[1645995268883,0.67026479,2645.2,2644.2,0.2112]
[1645995269084,0.60818354,2645.1,2644.2,0.2112]
[1645995269284,1.0,2644.3,2644.2,0.2112]
[1645995271429,1.0,2644.3,2643.7,4.0112]
[1645995271629,1.0,2644.3,2643.7,3.8]
[1645995271831,1.0,2643.8,2643.7,3.8]
[1645995274674,1.57514892,2643.8,2643.7,3.8]
[1645995275376,1.0,2643.8,2643.7,3.8]
[1645995275779,1.21931178,2644.7,2643.7,4.0112]
[1645995275780,1.0,2643.9,2643.7,4.0112]
[1645995275980,1.0,2644.1,2644.0,0.2112]
[1645995276481,1.03819752,2645.2,2644.1,16.878]
[1645995276482,0.00568484,2645.2,2644.1,16.878]
[1645995276776,0.0022638,2645.3,2645.1,0.2112]
[1645995276976,0.59596762,2645.3,2644.2,3.963]
[1645995277177,0.59596762,2645.3,2644.2,0.463]
[1645995277178,1.0,2645.2,2644.2,0.463]
[1645995277378,0.59596762,2645.1,2644.2,0.463]
[1645995277577,0.59596762,2645.1,2645.0,0.0576]
[1645995277832,1.0,2644.6,2644.2,0.463]
[1645995278028,1.0,2644.6,2644.5,0.0576]
[1645995278229,0.9408,2644.6,2644.5,0.0576]
[1645995278431,1.9408,2644.6,2644.5,1.36473451]
[1645995278837,1.9408,2644.6,2644.5,0.0576]
[1645995280838,1.939124,2644.6,2644.5,0.055185]
[1645995281337,2.52983439,2644.6,2644.5,0.055185]
[1645995282582,0.00613036,2645.2,2644.6,18.5]
[1645995282782,0.91679575,2645.7,2644.7,0.463]
[1645995282783,0.0022638,2645.6,2644.7,0.463]
[1645995282984,1.4165277,2646.2,2644.7,0.841]
[1645995282985,0.0022638,2645.3,2644.7,0.841]
[1645995283180,0.0022638,2645.6,2645.2,0.0544]
[1645995283479,0.0022638,2645.4,2645.3,0.0544]
[1645995283680,1.0,2645.5,2645.3,1.02986776]
[1645995283880,1.0,2645.5,2645.4,0.0544]
[1645995284279,1.00613328,2645.5,2645.4,0.0544]
[1645995284881,0.00613328,2645.5,2645.4,0.0544]
[1645995285082,1.00613328,2645.5,2645.4,0.0544]
[1645995285336,1.0,2645.5,2645.4,0.0544]
[1645995286330,0.0022638,2645.8,2645.4,0.0544]
[1645995286530,1.0,2645.9,2645.4,0.0544]
[1645995286733,0.00568982,2645.6,2645.2,1.20833817]
[1645995286932,0.00568982,2645.6,2645.5,0.0544]
[1645995287535,0.66413449,2645.8,2645.5,0.0544]
[1645995287735,0.66413449,2645.9,2645.5,0.0544]
[1645995287935,0.00567856,2645.7,2645.5,0.0544]
[1645995288140,0.00567856,2645.7,2645.2,1.20833817]
[1645995288335,0.00567856,2645.7,2645.6,0.0544]
[1645995288738,0.66413449,2646.0,2645.6,0.463]
[1645995288940,0.66413449,2646.1,2645.6,0.463]
[1645995289181,0.66413449,2646.1,2646.0,0.19054531]
[1645995289381,0.48736574,2645.9,2645.6,0.463]
[1645995289582,0.0568,2645.8,2645.6,0.463]
[1645995289983,0.0568,2645.8,2645.7,1.0]
[1645995290183,0.06287795,2645.8,2645.7,1.0]
[1645995290388,0.06287795,2645.8,2645.6,0.26730057]
[1645995290389,1.42909308,2645.7,2645.6,0.26730057]
[1645995290687,1.42909308,2645.7,2645.6,1.67316788]
[1645995290884,1.42909308,2645.7,2645.6,2.67316788]
[1645995291182,1.42909308,2645.7,2645.6,1.26730057]
[1645995291784,1.42909308,2645.7,2645.6,1.17267457]
[1645995292585,1.42909308,2645.7,2645.6,2.45209039]
[1645995293225,1.48589308,2645.7,2645.6,1.17267457]
[1645995293420,1.48589308,2645.7,2645.6,0.17267457]
[1645995294221,1.42909308,2645.7,2645.6,0.17267457]
[1645995294421,1.48589308,2645.7,2645.2,4.263]
[1645995294621,1.42909308,2645.7,2645.2,4.263]
[1645995294823,0.0568,2645.5,2645.2,4.263]
[1645995295729,0.00612278,2645.6,2645.2,4.263]
[1645995295730,0.0568,2645.4,2645.2,4.263]
[1645995296228,0.0568,2645.3,2645.2,4.263]
[1645995296692,0.00612278,2645.5,2645.2,4.263]
[1645995297294,1.43135688,2645.7,2645.2,4.263]
[1645995297495,0.00612278,2645.5,2645.2,4.263]
[1645995298496,1.43135688,2645.7,2645.2,4.263]
[1645995298694,0.00612507,2645.5,2645.2,4.263]
[1645995299795,0.00601435,2645.5,2645.2,4.263]
[1645995300832,1.43135688,2645.7,2645.2,4.263]
[1645995301027,0.00601435,2645.5,2645.2,4.263]
[1645995301930,1.43135688,2645.7,2645.2,4.263]
[1645995302132,1.42909308,2645.7,2645.2,4.263]
[1645995302330,0.0060139,2645.5,2645.2,4.263]
[1645995302535,0.48736574,2645.3,2645.2,4.263]
[1645995302732,0.86799704,2645.3,2645.2,4.263]
[1645995302932,0.81799704,2645.3,2645.2,4.263]
[1645995303933,0.43736574,2645.3,2645.2,4.263]
[1645995304680,0.79618128,2645.3,2645.2,4.263]
[1645995304877,0.85298128,2645.3,2645.2,4.263]
[1645995307084,0.85298128,2645.3,2645.2,5.263]
[1645995307085,0.49416574,2645.3,2645.2,5.263]
[1645995307282,0.85302281,2645.3,2645.2,5.263]
[1645995307483,0.49416574,2645.3,2645.2,4.263]
[1645995307924,0.85308933,2645.3,2645.2,3.8]
[1645995308624,0.85308933,2645.3,2645.2,2.11117513]
[1645995310030,0.85308933,2645.3,2645.2,7.513e-05]
[1645995310230,6.85308933,2645.3,2645.2,7.513e-05]
[1645995310428,6.85308933,2645.3,2643.9,2.7988]
[1645995310429,0.00072487,2645.1,2643.9,2.7988]
[1645995310632,1.14305932,2645.0,2643.9,2.7988]
[1645995310827,0.43736574,2644.0,2643.2,6.249]
[1645995311036,0.43736574,2644.0,2643.3,1.21648483]
[1645995311037,0.0568,2643.7,2643.3,1.21648483]
[1645995311227,1.0,2644.3,2643.1,1.21648483]
[1645995311430,1.26248357,2643.9,2642.6,0.71698376]
[1645995311698,1.26248357,2643.9,2642.4,7.3]
[1645995311699,0.54152811,2643.6,2642.4,7.3]
[1645995311896,0.54152811,2643.6,2642.3,2.9186]
[1645995311897,3.5,2643.5,2642.3,2.9186]
[1645995312196,3.68008108,2643.5,2642.3,0.00238684]
[1645995312394,0.99952811,2642.6,2642.3,0.00238684]
[1645995312596,1.0,2642.4,2642.3,0.00238684]
[1645995312803,3.5,2643.7,2642.3,0.00238684]
[1645995312804,0.99952811,2642.8,2642.3,0.38038684]
[1645995312996,2.811e-05,2643.6,2642.3,0.84338684]
[1645995313197,2.811e-05,2643.6,2642.7,0.01240006]
[1645995313398,0.91679575,2644.7,2643.0,0.378]
[1645995313399,2.811e-05,2643.8,2643.0,0.378]
[1645995313601,2.811e-05,2644.6,2643.2,0.378]
[1645995313797,2.811e-05,2644.6,2643.4,0.378]
[1645995313997,0.70569358,2645.0,2643.4,0.378]
[1645995314198,0.99902811,2644.8,2644.0,1.32481447]
[1645995314398,1.0,2644.1,2643.5,0.463]
[1645995315841,1.0,2644.1,2643.8,1.23147043]
[1645995316141,1.0,2644.1,2643.5,0.463]
[1645995316339,1.0,2643.7,2643.5,0.463]
[1645995316644,1.0,2643.6,2643.5,0.463]
[1645995317042,1.0,2643.6,2643.5,1.71493296]
[1645995317243,1.0,2643.6,2643.5,0.463]
[1645995318242,0.95,2643.6,2643.5,0.463]
[1645995318648,0.95,2643.6,2643.5,1.84545113]
[1645995319280,0.99902811,2644.3,2643.5,0.463]
[1645995319481,0.9496,2643.6,2643.1,4.0167]
[1645995319682,0.9496,2643.6,2643.1,1.463]
[1645995320081,0.9496,2643.2,2643.1,0.463]
[1645995320281,0.9496,2643.2,2643.1,1.73081697]
[1645995320683,0.9496,2643.7,2643.6,1.08335945]
[1645995320883,0.9496,2643.7,2643.3,0.463]
[1645995321083,0.9496,2643.2,2643.1,0.463]
[1645995321293,0.9496,2643.2,2642.3,3.81144782]
[1645995321294,0.9496,2643.2,2642.7,0.463]
[1645995321485,3.5,2644.0,2642.5,0.463]
[1645995321688,0.9496,2642.9,2642.3,3.55616376]
[1645995321887,0.99902811,2644.1,2642.4,0.841]
[1645995322188,2.16826826,2644.4,2642.8,5.378]
[1645995322189,0.9496,2643.5,2642.8,5.378]
[1645995322387,0.9496,2643.5,2642.9,0.841]
[1645995322588,0.57089086,2644.4,2642.9,0.841]
[1645995322827,0.9496,2643.4,2642.9,0.841]
[1645995323029,0.9496,2643.4,2643.0,1.20197368]
[1645995323231,0.99902811,2644.7,2643.1,0.841]
[1645995323432,0.70569358,2644.8,2643.1,0.841]
[1645995323433,0.99902811,2644.8,2643.8,5.378]
[1645995323733,0.0683866,2645.0,2644.0,0.378]
[1645995324130,0.0683866,2645.0,2644.1,0.841]
[1645995324331,0.0683866,2645.0,2644.2,0.463]
[1645995324531,0.0683866,2645.0,2644.2,0.05827265]
[1645995324935,0.00072487,2645.1,2644.2,0.05827265]
[1645995325835,0.00072487,2645.1,2644.3,0.1512]
[1645995326034,0.00072487,2645.1,2644.4,0.463]
[1645995326238,0.00072487,2645.1,2644.6,1.16418111]
[1645995326441,0.00072487,2645.1,2644.7,0.463]
[1645995326679,0.00072487,2645.1,2644.6,0.463]
[1645995327382,0.00072487,2645.1,2645.0,1.42915789]
[1645995327792,0.00072487,2645.1,2645.0,1.89215789]
[1645995329685,0.00072487,2645.1,2645.0,2.27015789]
[1645995329894,0.00072487,2645.1,2645.0,7.27015789]
[1645995330089,0.00072487,2645.1,2645.0,13.20335789]
[1645995330346,0.00072487,2645.1,2645.0,14.20335789]
[1645995330549,0.00072487,2645.1,2645.0,15.20335789]
[1645995330950,0.94399114,2646.1,2645.3,0.378]
[1645995331152,0.94399114,2646.1,2646.0,5.0]
[1645995331348,0.94172734,2646.1,2646.0,5.6141]
[1645995331551,0.0022638,2647.3,2646.1,18.4417]
[1645995331750,0.0022638,2647.3,2646.2,3.6295]
[1645995332053,0.0022638,2647.3,2646.3,0.378]
[1645995332054,0.04661073,2647.2,2646.3,0.378]
[1645995332251,0.04661073,2647.2,2646.5,0.378]
[1645995332447,0.007,2647.4,2646.6,0.463]
[1645995332448,0.0460423,2647.1,2646.6,0.463]
[1645995332648,0.0460423,2647.1,2646.7,0.1511]
[1645995332848,0.007,2647.4,2646.8,0.463]
[1645995332849,0.04547388,2647.0,2646.8,0.463]
[1645995333051,7.388e-05,2647.0,2646.9,0.1511]
[1645995333250,0.007,2647.4,2646.9,5.9921]
[1645995333651,0.007,2647.4,2646.9,1.6141]
[1645995333852,0.007,2647.4,2646.9,0.463]
[1645995334281,0.007,2647.4,2646.9,4.263]
[1645995334479,0.0022638,2647.9,2646.9,4.263]
[1645995334677,0.36940889,2647.9,2646.9,5.263]
[1645995334977,0.0683866,2648.2,2646.9,5.263]
[1645995334978,0.36714509,2647.8,2646.9,5.263]
[1645995335182,0.36714509,2647.8,2646.9,4.263]
[1645995335183,0.00613145,2647.5,2646.9,4.263]
[1645995335382,0.36714509,2647.4,2646.9,3.8]
[1645995336382,1.00129191,2647.7,2646.9,3.8]
[1645995336383,0.00613146,2647.3,2646.9,3.8]
[1645995337686,0.00613146,2647.2,2646.9,3.8]
[1645995337932,1.00515957,2647.2,2646.9,3.8]
[1645995338331,0.99902811,2647.0,2646.9,3.8]
[1645995338532,0.94902811,2647.0,2646.9,3.8]
[1645995338931,0.00612558,2647.2,2646.9,3.8]
[1645995339137,1.00515369,2647.2,2646.9,3.8]
[1645995339540,0.00612558,2647.2,2646.9,3.8]
[1645995339738,0.99902811,2647.4,2646.9,3.8]
[1645995339936,0.99902811,2647.2,2646.9,3.8]
[1645995340138,0.00612558,2647.2,2646.9,3.8]
[1645995341142,0.00612558,2647.2,2646.2,0.463]
[1645995341143,7.0,2647.1,2646.2,0.463]
[1645995341342,7.0,2647.1,2645.8,0.463]
[1645995341343,3.85208131,2647.0,2645.8,0.463]
[1645995341578,3.85208131,2647.0,2645.6,2.7372]
[1645995341579,0.99902811,2646.7,2645.6,2.7372]
[1645995341785,0.0022638,2646.6,2645.6,2.7372]
[1645995341982,0.99902811,2646.3,2645.6,2.7372]
[1645995342282,0.99902811,2646.3,2645.4,0.1511]
[1645995342283,0.99902811,2646.0,2645.4,0.1511]
[1645995342481,0.99902811,2646.0,2645.3,0.00815038]
[1645995342681,0.99902811,2645.8,2645.3,0.00815038]
[1645995343083,0.99902811,2646.2,2645.3,0.00815038]
[1645995343287,0.0022638,2646.2,2645.3,0.00815038]
[1645995343485,0.0022638,2646.2,2645.3,0.15925038]
[1645995343887,0.99902811,2646.3,2645.3,0.15925038]
[1645995344088,0.99902811,2646.3,2645.3,0.62225038]
[1645995344293,4.06106133,2647.1,2645.3,0.62225038]
[1645995344294,0.0022638,2646.2,2645.3,0.62225038]
[1645995344487,3.878,2646.9,2645.3,0.62225038]
[1645995344488,0.99902811,2646.5,2645.3,0.62225038]
[1645995344889,0.99902811,2646.3,2645.3,1.84903558]
[1645995345089,0.99902811,2646.3,2645.3,1.69793558]
[1645995345337,0.0022638,2646.2,2645.3,1.69793558]
[1645995345538,0.0022638,2646.2,2645.3,5.49793558]
[1645995345738,0.0022638,2646.2,2645.3,6.49793558]
[1645995346743,1.00129191,2646.2,2645.3,3.80815038]
[1645995346946,0.99902811,2646.2,2645.3,3.80815038]
[1645995347141,1.00129191,2646.2,2645.3,3.80815038]
[1645995348553,22.18008108,2646.1,2644.6,0.1511]
[1645995348748,0.37573102,2646.0,2644.5,0.06981337]
[1645995348947,0.37573102,2646.0,2643.7,3.4462]
[1645995348948,0.99902811,2645.4,2643.7,3.4462]
[1645995349192,0.99902811,2645.4,2643.8,1.1230068]
[1645995349193,4.83503598,2645.3,2643.8,1.1230068]
[1645995349396,4.83503598,2645.3,2643.7,2.832]
[1645995349397,0.99902811,2644.6,2643.7,2.832]
[1645995349699,5.0,2645.1,2644.6,0.44162693]
[1645995349894,5.0,2645.1,2643.8,0.1512]
[1645995349895,0.3,2644.4,2643.8,0.1512]
[1645995350296,3.5,2644.9,2643.2,3.12]
[1645995350496,1.0,2644.7,2643.3,1.06452519]
[1645995350696,1.0,2644.7,2643.4,0.1512]
[1645995350898,1.0,2644.4,2643.4,0.1512]
[1645995351098,1.0,2644.4,2643.2,4.14507779]
[1645995351099,1.0,2644.4,2643.7,0.01287619]
[1645995351299,1.0,2644.9,2643.8,0.6142]
[1645995351596,1.0,2645.0,2643.8,0.6142]